[Event "*** Titled Tuesday Blitz"]
[Site "Chess.com"]
[Date "2020.02.04"]
[Round "2"]
[White "reigningmvp"]
[Black "TigrVShlyape"]
[Result "0-1"]
[WhiteElo "2382"]
[BlackElo "2826"]
[TimeControl "180+2"]
[EndTime "13:25:54 PST"]
[Termination "TigrVShlyape won by resignation"]

1. e4 {[%clk 0:03:01.9]} 1... b6 {[%clk 0:03:00.6]} 2. d4 {[%clk 0:03:01.9]}
2... Bb7 {[%clk 0:03:01.5]} 3. Bd3 {[%clk 0:03:03]} 3... g6 {[%clk 0:03:02.3]}
4. f4 {[%clk 0:03:02.1]} 4... Bg7 {[%clk 0:03:03.6]} 5. Nf3 {[%clk 0:03:03.3]}
5... e6 {[%clk 0:03:05]} 6. O-O {[%clk 0:03:03.1]} 6... f5 {[%clk 0:03:06.2]} 7.
exf5 {[%clk 0:02:57.6]} 7... gxf5 {[%clk 0:03:06.8]} 8. Ne5 {[%clk 0:02:56.1]}
8... Nf6 {[%clk 0:03:07.3]} 9. c3 {[%clk 0:02:53.4]} 9... Nc6 {[%clk 0:03:03.1]}
10. Nd2 {[%clk 0:02:51.8]} 10... Rg8 {[%clk 0:03:02.4]} 11. Ndf3 {[%clk
0:02:50.7]} 11... Qe7 {[%clk 0:03:02.8]} 12. Rf2 {[%clk 0:02:41.6]} 12... Ne4
{[%clk 0:03:01.3]} 13. Bxe4 {[%clk 0:02:39.5]} 13... fxe4 {[%clk 0:03:01.8]} 14.
Nxc6 {[%clk 0:02:40.5]} 14... Bxc6 {[%clk 0:03:00.8]} 15. Ne5 {[%clk 0:02:41.7]}
15... Bxe5 {[%clk 0:02:53.7]} 16. Qh5+ {[%clk 0:02:04.9]} 16... Rg6 {[%clk
0:02:53.3]} 17. fxe5 {[%clk 0:02:01]} 17... O-O-O {[%clk 0:02:46.4]} 18. Be3
{[%clk 0:02:00.5]} 18... Bb5 {[%clk 0:02:47.4]} 19. a4 {[%clk 0:01:49.8]} 19...
Bd3 {[%clk 0:02:47.9]} 20. a5 {[%clk 0:01:51]} 20... Kb7 {[%clk 0:02:38.4]} 21.
b4 {[%clk 0:01:41.8]} 21... Rf8 {[%clk 0:02:30.3]} 22. axb6 {[%clk 0:01:24]}
22... cxb6 {[%clk 0:02:25.8]} 23. Raa2 {[%clk 0:01:19.7]} 23... Rxf2 {[%clk
0:02:20.4]} 24. Rxf2 {[%clk 0:01:19]} 24... Bc4 {[%clk 0:02:16.1]} 25. h4 {[%clk
0:00:59.6]} 25... Qg7 {[%clk 0:02:10.9]} 26. Bg5 {[%clk 0:00:55.1]} 26... h6
{[%clk 0:02:10.9]} 27. Be3 {[%clk 0:00:43.8]} 27... Qg8 {[%clk 0:01:51]} 28.
Bxh6 {[%clk 0:00:36.2]} 28... Rg3 {[%clk 0:01:12.2]} 29. Bf4 {[%clk 0:00:25.2]}
29... Rxc3 {[%clk 0:01:08.7]} 30. Bg5 {[%clk 0:00:25.3]} 30... e3 {[%clk
0:01:02.3]} 31. Rf7 {[%clk 0:00:26.2]} 31... Bb5 {[%clk 0:00:55.2]} 32. Qf3+
{[%clk 0:00:21.8]} 32... Bc6 {[%clk 0:00:55.6]} 33. Rxd7+ {[%clk 0:00:22.7]}
33... Kc8 {[%clk 0:00:39.2]} 34. Qf7 {[%clk 0:00:21.2]} 34... Rc1+ {[%clk
0:00:36.2]} 35. Kh2 {[%clk 0:00:21.4]} 35... Qxf7 {[%clk 0:00:37.3]} 36. Rxf7
{[%clk 0:00:22.4]} 36... e2 {[%clk 0:00:38.6]} 37. Rf8+ {[%clk 0:00:21.1]} 37...
Kb7 {[%clk 0:00:38.8]} 38. Bd2 {[%clk 0:00:17.5]} 38... Rd1 {[%clk 0:00:39.4]}
39. Bc3 {[%clk 0:00:16.6]} 39... e1=Q {[%clk 0:00:40.3]} 40. Bxe1 {[%clk
0:00:17.6]} 40... Rxe1 {[%clk 0:00:41.4]} 41. h5 {[%clk 0:00:19.2]} 41... Re4
{[%clk 0:00:39]} 42. g3 {[%clk 0:00:19.5]} 42... Rxd4 {[%clk 0:00:35.3]} 43.
Rf7+ {[%clk 0:00:18.4]} 43... Ka6 {[%clk 0:00:35.8]} 44. h6 {[%clk 0:00:19.7]}
44... Rd1 {[%clk 0:00:36.6]} 45. Kh3 {[%clk 0:00:20]} 45... Rh1+ {[%clk
0:00:37.3]} 46. Kg4 {[%clk 0:00:21.4]} 46... Rxh6 {[%clk 0:00:38.8]} 47. Kg5
{[%clk 0:00:23]} 47... Rh3 {[%clk 0:00:38.7]} 48. g4 {[%clk 0:00:23.9]} 48...
Kb5 {[%clk 0:00:38.2]} 49. Kg6 {[%clk 0:00:23.6]} 49... Kxb4 {[%clk 0:00:38.2]}
50. Rxa7 {[%clk 0:00:24.4]} 50... Be4+ {[%clk 0:00:37.9]} 51. Kf6 {[%clk
0:00:24.7]} 51... Rh6+ {[%clk 0:00:38.9]} 52. Ke7 {[%clk 0:00:26.1]} 52... Rh7+
{[%clk 0:00:40]} 53. Kxe6 {[%clk 0:00:27.5]} 53... Rxa7 {[%clk 0:00:40.7]} 54.
g5 {[%clk 0:00:29]} 54... b5 {[%clk 0:00:40.8]} 55. Kf6 {[%clk 0:00:30.1]} 55...
Ra6+ {[%clk 0:00:40.9]} 56. Kf7 {[%clk 0:00:30.4]} 56... Bd5+ {[%clk 0:00:42]}
57. Kg7 {[%clk 0:00:30]} 57... Kc5 {[%clk 0:00:43.1]} 58. g6 {[%clk 0:00:31.4]}
58... Be4 {[%clk 0:00:44.2]} 0-1

[Event "*** Titled Tuesday Blitz"]
[Site "Chess.com"]
[Date "2020.02.04"]
[Round "2"]
[White "DenishevM"]
[Black "VladimirBelous"]
[Result "0-1"]
[WhiteElo "2516"]
[BlackElo "2747"]
[TimeControl "180+2"]
[EndTime "13:25:56 PST"]
[Termination "VladimirBelous won by resignation"]

1. Nf3 {[%clk 0:03:00.4]} 1... Nf6 {[%clk 0:02:59.8]} 2. c4 {[%clk 0:03:01]}
2... g6 {[%clk 0:03:01.1]} 3. g3 {[%clk 0:03:02]} 3... Bg7 {[%clk 0:03:03]} 4.
Bg2 {[%clk 0:03:02.9]} 4... O-O {[%clk 0:03:04.9]} 5. O-O {[%clk 0:03:03.8]}
5... d6 {[%clk 0:03:01.7]} 6. Nc3 {[%clk 0:03:03.5]} 6... c6 {[%clk 0:03:02.5]}
7. d4 {[%clk 0:03:03]} 7... a6 {[%clk 0:03:04]} 8. e4 {[%clk 0:02:57.6]} 8... b5
{[%clk 0:03:04.9]} 9. cxb5 {[%clk 0:02:46.5]} 9... axb5 {[%clk 0:03:06.8]} 10.
a3 {[%clk 0:02:48.1]} 10... b4 {[%clk 0:03:06.3]} 11. e5 {[%clk 0:02:44.6]}
11... bxc3 {[%clk 0:02:57.2]} 12. exf6 {[%clk 0:02:45.2]} 12... cxb2 {[%clk
0:02:58.4]} 13. Bxb2 {[%clk 0:02:37.6]} 13... Bxf6 {[%clk 0:02:58.4]} 14. Re1
{[%clk 0:02:37.6]} 14... Qb6 {[%clk 0:02:36.8]} 15. Qd2 {[%clk 0:02:36]} 15...
Bf5 {[%clk 0:02:29]} 16. Bc3 {[%clk 0:02:28.1]} 16... Nd7 {[%clk 0:02:24.9]} 17.
a4 {[%clk 0:02:27.7]} 17... Qa6 {[%clk 0:02:21]} 18. a5 {[%clk 0:02:23.2]} 18...
Qd3 {[%clk 0:02:13.1]} 19. Qc1 {[%clk 0:01:57.6]} 19... c5 {[%clk 0:02:10.2]}
20. Re3 {[%clk 0:01:38.4]} 20... Qb5 {[%clk 0:02:09.6]} 21. dxc5 {[%clk
0:01:35.4]} 21... Qxc5 {[%clk 0:02:02.4]} 22. Bxf6 {[%clk 0:01:26.7]} 22...
Qxc1+ {[%clk 0:02:00.8]} 23. Rxc1 {[%clk 0:01:28.3]} 23... Nxf6 {[%clk
0:02:00.8]} 24. Ra1 {[%clk 0:01:20.2]} 24... Be4 {[%clk 0:01:44]} 25. Rea3
{[%clk 0:01:11.6]} 25... Nd5 {[%clk 0:01:33.6]} 26. Ra4 {[%clk 0:01:01]} 26...
Nc3 {[%clk 0:01:23.5]} 27. R4a3 {[%clk 0:00:48.9]} 27... Nb5 {[%clk 0:01:09]}
28. Ra4 {[%clk 0:00:49.2]} 28... Bc6 {[%clk 0:01:08.9]} 29. a6 {[%clk
0:00:42.2]} 29... Ra7 {[%clk 0:01:10.2]} 30. Ra5 {[%clk 0:00:38.9]} 30... Rfa8
{[%clk 0:01:05.9]} 31. Rb1 {[%clk 0:00:15.3]} 31... Nc7 {[%clk 0:01:00.3]} 32.
Rc1 {[%clk 0:00:13.5]} 32... Be4 {[%clk 0:00:37.9]} 33. Ra4 {[%clk 0:00:10.4]}
33... d5 {[%clk 0:00:36.5]} 34. Nd4 {[%clk 0:00:06.6]} 34... Bxg2 {[%clk
0:00:30.6]} 35. Kxg2 {[%clk 0:00:08.2]} 35... Rxa6 {[%clk 0:00:32.2]} 36. Rxa6
{[%clk 0:00:05.9]} 36... Nxa6 {[%clk 0:00:34.1]} 37. Nc6 {[%clk 0:00:07.8]}
37... e6 {[%clk 0:00:32.7]} 38. Ra1 {[%clk 0:00:07.9]} 38... Nc7 {[%clk
0:00:32.6]} 39. Rc1 {[%clk 0:00:08.5]} 39... Nb5 {[%clk 0:00:32.1]} 40. Ne5
{[%clk 0:00:07.3]} 40... Kg7 {[%clk 0:00:31]} 41. Rc5 {[%clk 0:00:07.8]} 41...
Rb8 {[%clk 0:00:18.4]} 42. f4 {[%clk 0:00:07.4]} 42... Rb7 {[%clk 0:00:17.3]}
43. h4 {[%clk 0:00:08.5]} 43... Nd6 {[%clk 0:00:18.1]} 44. g4 {[%clk 0:00:07]}
44... Rb2+ {[%clk 0:00:18.4]} 45. Kf3 {[%clk 0:00:07.3]} 45... Rb3+ {[%clk
0:00:19.9]} 46. Kg2 {[%clk 0:00:08.1]} 46... Rb4 {[%clk 0:00:21.3]} 47. Rc6
{[%clk 0:00:06.7]} 47... Nc4 {[%clk 0:00:21.9]} 48. Nd7 {[%clk 0:00:05.7]} 48...
Rb2+ {[%clk 0:00:22.8]} 49. Kf1 {[%clk 0:00:06.4]} 49... Rb3 {[%clk 0:00:24.7]}
50. Rc7 {[%clk 0:00:07.3]} 50... Rf3+ {[%clk 0:00:25.7]} 51. Kg2 {[%clk
0:00:08.8]} 51... Rxf4 {[%clk 0:00:27.6]} 52. Kg3 {[%clk 0:00:10.5]} 52... Rf1
{[%clk 0:00:28.9]} 53. h5 {[%clk 0:00:11.5]} 53... gxh5 {[%clk 0:00:29.5]} 54.
gxh5 {[%clk 0:00:12.8]} 54... Rf5 {[%clk 0:00:30.8]} 55. Kg4 {[%clk 0:00:14.2]}
55... h6 {[%clk 0:00:31.7]} 56. Kh4 {[%clk 0:00:15.1]} 56... Ne5 {[%clk
0:00:32.6]} 57. Nc5 {[%clk 0:00:15.7]} 57... Nf3+ {[%clk 0:00:33.2]} 58. Kg4
{[%clk 0:00:16.7]} 58... Kf6 {[%clk 0:00:35.1]} 59. Nd7+ {[%clk 0:00:17.2]}
59... Kg7 {[%clk 0:00:36.5]} 60. Nc5 {[%clk 0:00:18.5]} 60... Ne5+ {[%clk
0:00:38.1]} 61. Kh4 {[%clk 0:00:19.5]} 61... Kf6 {[%clk 0:00:40]} 62. Ra7 {[%clk
0:00:19.8]} 62... Rf4+ {[%clk 0:00:41.5]} 63. Kg3 {[%clk 0:00:20.6]} 63... Rc4
{[%clk 0:00:43.4]} 64. Nb7 {[%clk 0:00:20.8]} 64... Rc7 {[%clk 0:00:43.9]} 0-1

[Event "*** Titled Tuesday Blitz"]
[Site "Chess.com"]
[Date "2020.02.04"]
[Round "2"]
[White "Gusarov91"]
[Black "Chesstrainer1"]
[Result "1-0"]
[WhiteElo "2618"]
[BlackElo "2365"]
[TimeControl "180+2"]
[EndTime "13:26:06 PST"]
[Termination "Gusarov91 won on time"]

1. d4 {[%clk 0:03:01.9]} 1... Nf6 {[%clk 0:02:59.8]} 2. Nf3 {[%clk 0:03:03.2]}
2... g6 {[%clk 0:02:59]} 3. c4 {[%clk 0:03:02.4]} 3... Bg7 {[%clk 0:02:59.9]} 4.
Nc3 {[%clk 0:03:03.7]} 4... O-O {[%clk 0:03:01.2]} 5. g3 {[%clk 0:03:02.5]} 5...
d6 {[%clk 0:02:58.9]} 6. Bg2 {[%clk 0:03:03.9]} 6... c5 {[%clk 0:03:00.2]} 7.
O-O {[%clk 0:03:04.4]} 7... Nc6 {[%clk 0:03:00.7]} 8. dxc5 {[%clk 0:03:04.9]}
8... dxc5 {[%clk 0:03:01.3]} 9. Be3 {[%clk 0:03:06.8]} 9... Qa5 {[%clk
0:03:00.5]} 10. Qa4 {[%clk 0:03:04.5]} 10... Qxa4 {[%clk 0:02:59.9]} 11. Nxa4
{[%clk 0:03:05.5]} 11... b6 {[%clk 0:03:01.5]} 12. Ne5 {[%clk 0:03:05]} 12...
Nxe5 {[%clk 0:03:02.4]} 13. Bxa8 {[%clk 0:03:06]} 13... Bd7 {[%clk 0:03:03.6]}
14. Bf4 {[%clk 0:02:58.9]} 14... Bxa4 {[%clk 0:02:39.4]} 15. Bxe5 {[%clk
0:02:58.2]} 15... Rxa8 {[%clk 0:02:39]} 16. b3 {[%clk 0:02:59.7]} 16... Bc6
{[%clk 0:02:38.4]} 17. Rfd1 {[%clk 0:02:58.5]} 17... Ne4 {[%clk 0:02:17]} 18.
Bxg7 {[%clk 0:02:58.7]} 18... Kxg7 {[%clk 0:02:18.9]} 19. f3 {[%clk 0:02:58.5]}
19... Nd6 {[%clk 0:02:17.3]} 20. Kf2 {[%clk 0:02:57.7]} 20... f5 {[%clk
0:02:16.3]} 21. Rd2 {[%clk 0:02:56.5]} 21... Kf6 {[%clk 0:02:16.5]} 22. h4
{[%clk 0:02:54.8]} 22... a5 {[%clk 0:02:03.9]} 23. Rad1 {[%clk 0:02:55.1]} 23...
Nf7 {[%clk 0:02:04.2]} 24. g4 {[%clk 0:02:45.2]} 24... fxg4 {[%clk 0:01:58.1]}
25. fxg4 {[%clk 0:02:45.8]} 25... a4 {[%clk 0:01:56.7]} 26. Rb1 {[%clk 0:02:45]}
26... axb3 {[%clk 0:01:47.3]} 27. Rxb3 {[%clk 0:02:41.7]} 27... Ne5 {[%clk
0:01:29.8]} 28. Rxb6 {[%clk 0:02:41.2]} 28... e6 {[%clk 0:01:11.4]} 29. g5+
{[%clk 0:02:41.1]} 29... Kf5 {[%clk 0:01:09.8]} 30. Rd6 {[%clk 0:02:27.9]} 30...
Bd7 {[%clk 0:01:08.3]} 31. Rb7 {[%clk 0:02:26.7]} 31... Bc8 {[%clk 0:00:43.4]}
32. Rxh7 {[%clk 0:02:25.2]} 32... Rxa2 {[%clk 0:00:41.7]} 33. Rd8 {[%clk
0:02:21]} 33... Ba6 {[%clk 0:00:41.6]} 34. Rf8+ {[%clk 0:02:15.8]} 34... Ke4
{[%clk 0:00:42.2]} 35. h5 {[%clk 0:02:13]} 35... gxh5 {[%clk 0:00:37.9]} 36.
Rxh5 {[%clk 0:02:13.6]} 36... Bxc4 {[%clk 0:00:38.6]} 37. Rh4+ {[%clk
0:02:14.6]} 37... Kd5 {[%clk 0:00:39.8]} 38. Rd8+ {[%clk 0:02:15.1]} 38... Kc6
{[%clk 0:00:40.7]} 39. Re4 {[%clk 0:02:15.9]} 39... Nf7 {[%clk 0:00:17.1]} 40.
Rf8 {[%clk 0:02:10.3]} 40... Bd5 {[%clk 0:00:17.3]} 41. Rg4 {[%clk 0:02:06.6]}
41... Ne5 {[%clk 0:00:18.1]} 42. Rg3 {[%clk 0:02:06]} 42... c4 {[%clk
0:00:16.8]} 43. g6 {[%clk 0:02:05.2]} 43... Nxg6 {[%clk 0:00:17.3]} 44. Rxg6
{[%clk 0:02:05.8]} 44... Kd6 {[%clk 0:00:17.8]} 45. Rc8 {[%clk 0:02:04.8]} 45...
Ra7 {[%clk 0:00:16.2]} 46. Rg4 {[%clk 0:02:02]} 46... Rf7+ {[%clk 0:00:16.1]}
47. Ke1 {[%clk 0:02:02.7]} 47... Ke5 {[%clk 0:00:16.9]} 48. Rc5 {[%clk
0:02:00.5]} 48... Kd6 {[%clk 0:00:17]} 49. Rc8 {[%clk 0:02:01.1]} 49... Rh7
{[%clk 0:00:18]} 50. e4 {[%clk 0:01:58.6]} 50... Bc6 {[%clk 0:00:15.2]} 51. e5+
{[%clk 0:01:59.6]} 51... Kd7 {[%clk 0:00:15.8]} 52. Rgg8 {[%clk 0:01:54.5]}
52... Rh1+ {[%clk 0:00:15.6]} 53. Kd2 {[%clk 0:01:55.3]} 53... Bd5 {[%clk
0:00:16.1]} 54. Rgd8+ {[%clk 0:01:55.4]} 54... Ke7 {[%clk 0:00:16.7]} 55. Rd6
{[%clk 0:01:55.2]} 55... Rh5 {[%clk 0:00:15.6]} 56. Rc7+ {[%clk 0:01:56]} 56...
Ke8 {[%clk 0:00:16.5]} 57. Rb6 {[%clk 0:01:55.5]} 57... Kd8 {[%clk 0:00:15.8]}
58. Rg7 {[%clk 0:01:56.4]} 58... Kc8 {[%clk 0:00:16]} 59. Kc3 {[%clk 0:01:40.5]}
59... Rxe5 {[%clk 0:00:16.5]} 60. Kd4 {[%clk 0:01:42]} 60... Rh5 {[%clk
0:00:17.8]} 61. Kc5 {[%clk 0:01:42]} 61... Bf3+ {[%clk 0:00:12.8]} 62. Kd6
{[%clk 0:01:42.7]} 62... Rd5+ {[%clk 0:00:13]} 63. Kxe6 {[%clk 0:01:43.8]} 63...
c3 {[%clk 0:00:13]} 64. Rc6+ {[%clk 0:01:44.4]} 64... Kb8 {[%clk 0:00:12.4]} 65.
Rxc3 {[%clk 0:01:45.6]} 65... Be4 {[%clk 0:00:10.6]} 66. Rb3+ {[%clk 0:01:43.6]}
66... Kc8 {[%clk 0:00:10.1]} 67. Rb4 {[%clk 0:01:44.5]} 67... Bh1 {[%clk
0:00:09.8]} 68. Rh4 {[%clk 0:01:45.2]} 68... Bf3 {[%clk 0:00:08.8]} 69. Rf4
{[%clk 0:01:37.1]} 69... Bh1 {[%clk 0:00:06.9]} 70. Rc4+ {[%clk 0:01:37.9]}
70... Kb8 {[%clk 0:00:06.6]} 71. Rh4 {[%clk 0:01:38.4]} 1-0

[Event "*** Titled Tuesday Blitz"]
[Site "Chess.com"]
[Date "2020.02.04"]
[Round "2"]
[White "SARGISMV"]
[Black "Abund"]
[Result "0-1"]
[WhiteElo "2377"]
[BlackElo "2722"]
[TimeControl "180+2"]
[EndTime "13:26:11 PST"]
[Termination "Abund won on time"]

1. Nf3 {[%clk 0:03:00]} 1... c5 {[%clk 0:02:59.7]} 2. c4 {[%clk 0:03:00.8]} 2...
Nf6 {[%clk 0:03:00.3]} 3. g3 {[%clk 0:03:01.9]} 3... Nc6 {[%clk 0:02:58.7]} 4.
Bg2 {[%clk 0:03:03.1]} 4... d5 {[%clk 0:03:00]} 5. O-O {[%clk 0:03:04.6]} 5...
d4 {[%clk 0:02:58.7]} 6. e3 {[%clk 0:03:05.7]} 6... e5 {[%clk 0:02:59.8]} 7.
exd4 {[%clk 0:03:06.7]} 7... exd4 {[%clk 0:03:00.3]} 8. d3 {[%clk 0:03:07.6]}
8... Be7 {[%clk 0:02:59.6]} 9. Re1 {[%clk 0:03:09]} 9... O-O {[%clk 0:02:59.8]}
10. Bg5 {[%clk 0:03:10.2]} 10... h6 {[%clk 0:02:54.9]} 11. Bxf6 {[%clk
0:03:10.3]} 11... Bxf6 {[%clk 0:02:56.1]} 12. Nbd2 {[%clk 0:03:11.7]} 12... Bf5
{[%clk 0:02:52.9]} 13. Ne4 {[%clk 0:03:12.2]} 13... Be7 {[%clk 0:02:53.6]} 14.
a3 {[%clk 0:03:11.1]} 14... Qd7 {[%clk 0:02:48.3]} 15. Rb1 {[%clk 0:03:10.4]}
15... a5 {[%clk 0:02:48.7]} 16. Qa4 {[%clk 0:02:57.1]} 16... Qc7 {[%clk
0:02:27.2]} 17. Qc2 {[%clk 0:01:56.8]} 17... Rfe8 {[%clk 0:02:21.4]} 18. h3
{[%clk 0:01:55.9]} 18... Bh7 {[%clk 0:01:49]} 19. Re2 {[%clk 0:01:50.6]} 19...
Bf8 {[%clk 0:01:41.6]} 20. Rbe1 {[%clk 0:01:48.1]} 20... Re6 {[%clk 0:01:41.8]}
21. Ned2 {[%clk 0:01:23.4]} 21... Rxe2 {[%clk 0:01:41.6]} 22. Rxe2 {[%clk
0:01:25.3]} 22... Qd7 {[%clk 0:01:41.1]} 23. Ne5 {[%clk 0:01:19.6]} 23... Nxe5
{[%clk 0:01:41.8]} 24. Rxe5 {[%clk 0:01:20.2]} 24... Bd6 {[%clk 0:01:41.8]} 25.
Rd5 {[%clk 0:01:13.9]} 25... Qc7 {[%clk 0:01:31]} 26. Ne4 {[%clk 0:01:11.9]}
26... Be7 {[%clk 0:01:25.8]} 27. Qa4 {[%clk 0:01:11.7]} 27... Rd8 {[%clk
0:01:06.6]} 28. Qb5 {[%clk 0:01:03.3]} 28... b6 {[%clk 0:01:04.5]} 29. f4 {[%clk
0:00:43.5]} 29... Bxe4 {[%clk 0:00:44.3]} 30. Bxe4 {[%clk 0:00:42.3]} 30... Bd6
{[%clk 0:00:44.5]} 31. Kg2 {[%clk 0:00:36.9]} 31... g6 {[%clk 0:00:43.4]} 32. h4
{[%clk 0:00:28.7]} 32... f5 {[%clk 0:00:39.6]} 33. Bf3 {[%clk 0:00:29.2]} 33...
h5 {[%clk 0:00:40.4]} 34. Qa4 {[%clk 0:00:27.5]} 34... Kf7 {[%clk 0:00:40]} 35.
Qb5 {[%clk 0:00:27.8]} 35... Re8 {[%clk 0:00:39.4]} 36. Qa6 {[%clk 0:00:24.4]}
36... Re3 {[%clk 0:00:35.5]} 37. Qa8 {[%clk 0:00:24.7]} 37... Re8 {[%clk
0:00:23.2]} 38. Qa6 {[%clk 0:00:24.6]} 38... Kg7 {[%clk 0:00:20.6]} 39. Qb5
{[%clk 0:00:24.4]} 39... Re3 {[%clk 0:00:20.5]} 40. Qb3 {[%clk 0:00:22.7]} 40...
Kf7 {[%clk 0:00:16.1]} 41. Qd1 {[%clk 0:00:19.2]} 41... Kg7 {[%clk 0:00:16.5]}
42. b3 {[%clk 0:00:10.9]} 42... Qe7 {[%clk 0:00:17.2]} 43. Kh3 {[%clk
0:00:07.8]} 43... Qe6 {[%clk 0:00:17]} 44. b4 {[%clk 0:00:07.1]} 44... Re1
{[%clk 0:00:15.2]} 45. Qa4 {[%clk 0:00:04.8]} 45... Qe3 {[%clk 0:00:10.5]} 46.
Qd7+ {[%clk 0:00:04.9]} 46... Be7 {[%clk 0:00:03.3]} 0-1

[Event "*** Titled Tuesday Blitz"]
[Site "Chess.com"]
[Date "2020.02.04"]
[Round "2"]
[White "cukus"]
[Black "temus_galaktionov"]
[Result "1-0"]
[WhiteElo "2491"]
[BlackElo "2703"]
[TimeControl "180+2"]
[EndTime "13:26:13 PST"]
[Termination "cukus won by resignation"]

1. e4 {[%clk 0:02:58.7]} 1... c6 {[%clk 0:03:00.8]} 2. d4 {[%clk 0:02:51.2]}
2... g6 {[%clk 0:03:02.5]} 3. Nc3 {[%clk 0:02:48.1]} 3... Bg7 {[%clk 0:03:04.4]}
4. Be3 {[%clk 0:02:46]} 4... d6 {[%clk 0:03:05.1]} 5. Qd2 {[%clk 0:02:44.7]}
5... Nd7 {[%clk 0:02:57.6]} 6. f3 {[%clk 0:02:45.5]} 6... e5 {[%clk 0:02:58.2]}
7. O-O-O {[%clk 0:02:44.9]} 7... Qa5 {[%clk 0:02:59]} 8. Kb1 {[%clk 0:02:45]}
8... Ngf6 {[%clk 0:02:55.8]} 9. h4 {[%clk 0:02:40.5]} 9... h5 {[%clk 0:02:55.9]}
10. Nh3 {[%clk 0:02:40.4]} 10... a6 {[%clk 0:02:52.1]} 11. Ng5 {[%clk
0:02:39.1]} 11... b5 {[%clk 0:02:53]} 12. dxe5 {[%clk 0:02:36.6]} 12... dxe5
{[%clk 0:02:54.9]} 13. Rg1 {[%clk 0:02:29.9]} 13... Bf8 {[%clk 0:02:40.7]} 14.
f4 {[%clk 0:02:12.6]} 14... Bb4 {[%clk 0:02:26.2]} 15. fxe5 {[%clk 0:02:12.3]}
15... Nxe5 {[%clk 0:02:27.5]} 16. Bd4 {[%clk 0:02:07.1]} 16... Nfg4 {[%clk
0:02:28.5]} 17. Be2 {[%clk 0:01:55]} 17... O-O {[%clk 0:02:29.2]} 18. Nf3 {[%clk
0:01:49.1]} 18... Nc4 {[%clk 0:02:24.5]} 19. Bxc4 {[%clk 0:01:46.5]} 19... bxc4
{[%clk 0:02:26.4]} 20. Ng5 {[%clk 0:01:10]} 20... c5 {[%clk 0:02:19.5]} 21. Nd5
{[%clk 0:01:01]} 21... cxd4 {[%clk 0:01:44.2]} 22. Qxb4 {[%clk 0:00:55.2]} 22...
Qxb4 {[%clk 0:01:28.7]} 23. Nxb4 {[%clk 0:00:57.1]} 23... Rd8 {[%clk 0:01:13.6]}
24. Nc6 {[%clk 0:00:53.6]} 24... Rd6 {[%clk 0:01:14.4]} 25. Nxd4 {[%clk
0:00:43.3]} 25... Bb7 {[%clk 0:01:15.3]} 26. Ndf3 {[%clk 0:00:37.7]} 26... Rad8
{[%clk 0:01:12.6]} 27. Kc1 {[%clk 0:00:37.2]} 27... f6 {[%clk 0:01:12.4]} 28.
Ne6 {[%clk 0:00:32.2]} 28... Rxd1+ {[%clk 0:01:10.9]} 29. Rxd1 {[%clk
0:00:34.1]} 29... Rxd1+ {[%clk 0:01:11.6]} 30. Kxd1 {[%clk 0:00:36]} 30... Bxe4
{[%clk 0:01:12.6]} 31. Nc5 {[%clk 0:00:33.8]} 31... Bf5 {[%clk 0:01:08.3]} 32.
Kd2 {[%clk 0:00:31.9]} 32... a5 {[%clk 0:01:08.6]} 33. Nd4 {[%clk 0:00:30.3]}
33... Bc8 {[%clk 0:01:03.2]} 34. Nc6 {[%clk 0:00:31.4]} 34... Kf7 {[%clk
0:01:01.5]} 35. Nxa5 {[%clk 0:00:29.2]} 35... Ne5 {[%clk 0:01:01.7]} 36. Kc3
{[%clk 0:00:28.2]} 36... g5 {[%clk 0:00:55.1]} 37. hxg5 {[%clk 0:00:28]} 37...
fxg5 {[%clk 0:00:56.7]} 38. Nxc4 {[%clk 0:00:29.7]} 38... Nxc4 {[%clk
0:00:58.1]} 39. Kxc4 {[%clk 0:00:31.6]} 39... h4 {[%clk 0:00:59.8]} 40. Kd3
{[%clk 0:00:27.6]} 40... Bf5+ {[%clk 0:00:59.8]} 41. Ke3 {[%clk 0:00:23.1]}
41... Bxc2 {[%clk 0:01:00.6]} 42. a4 {[%clk 0:00:23.8]} 42... Ke7 {[%clk
0:01:00.5]} 43. a5 {[%clk 0:00:24.1]} 43... Kd6 {[%clk 0:00:51.4]} 44. a6 {[%clk
0:00:24.5]} 44... g4 {[%clk 0:00:24.5]} 45. a7 {[%clk 0:00:24.3]} 45... h3
{[%clk 0:00:25.6]} 46. gxh3 {[%clk 0:00:23]} 46... gxh3 {[%clk 0:00:27.5]} 47.
a8=Q {[%clk 0:00:22.4]} 47... h2 {[%clk 0:00:26.4]} 48. Ne4+ {[%clk 0:00:19.3]}
48... Ke5 {[%clk 0:00:22.9]} 49. Nf2 {[%clk 0:00:19.9]} 49... Bf5 {[%clk
0:00:19.4]} 50. Qa5+ {[%clk 0:00:20]} 50... Kf6 {[%clk 0:00:19.5]} 51. Qb6+
{[%clk 0:00:20.3]} 51... Kg5 {[%clk 0:00:19.7]} 52. Qc7 {[%clk 0:00:20.4]} 52...
Be4 {[%clk 0:00:18.7]} 53. Kxe4 {[%clk 0:00:20.5]} 53... h1=Q+ {[%clk
0:00:16.5]} 54. Nxh1 {[%clk 0:00:21.5]} 54... Kg4 {[%clk 0:00:18.2]} 55. Qg3+
{[%clk 0:00:21.8]} 55... Kh5 {[%clk 0:00:19.2]} 56. Kf5 {[%clk 0:00:22.8]} 1-0